Workbook

Sheet التفاصيل
A1: نوع الكابينة | B1: مبلغ التكلفة
A2: AB 1*10*10 | B2: =IFERROR(VLOOKUP($A2,[1]البيانات!$B$2:$L$350,11,FALSE),"") -> 335.034
A3: AB 1*10*11 | B3: =IFERROR(VLOOKUP($A3,[1]البيانات!$B$2:$L$350,11,FALSE),"") -> 19.7597
A4: AB 1*10*14 | B4: =IFERROR(VLOOKUP($A4,[1]البيانات!$B$2:$L$350,11,FALSE),"") -> 16.6236
A5: AW 45*33*75 | B5: =IFERROR(VLOOKUP($A5,[1]البيانات!$B$2:$L$350,11,FALSE),"") -> 
A6: AW 50*33*75 | B6: =IFERROR(VLOOKUP($A6,[1]البيانات!$B$2:$L$350,11,FALSE),"") -> 
A7: AB 1*10*14 | B7: =IFERROR(VLOOKUP($A7,[1]البيانات!$B$2:$L$350,11,FALSE),"") -> 16.6236
A8: AB 100*56*75 | B8: =IFERROR(VLOOKUP($A8,[1]البيانات!$B$2:$L$350,11,FALSE),"") -> 
A9: AB 100*56*75 | B9: =IFERROR(VLOOKUP($A9,[1]البيانات!$B$2:$L$350,11,FALSE),"") -> 
A10: AW 25*33*75 | B10: =IFERROR(VLOOKUP($A10,[1]البيانات!$B$2:$L$350,11,FALSE),"") -> 
A11: AW 20*33*75 | B11: =IFERROR(VLOOKUP($A11,[1]البيانات!$B$2:$L$350,11,FALSE),"") -> 
A12: ASB 100*56*75 | B12: =IFERROR(VLOOKUP($A12,[1]البيانات!$B$2:$L$350,11,FALSE),"") -> 
A13: AW 90*33*75 | B13: =IFERROR(VLOOKUP($A13,[1]البيانات!$B$2:$L$350,11,FALSE),"") -> 
A14: AW 40*33*75 | B14: =IFERROR(VLOOKUP($A14,[1]البيانات!$B$2:$L$350,11,FALSE),"") -> 
A15: AB 1*10*16 | B15: =IFERROR(VLOOKUP($A15,[1]البيانات!$B$2:$L$350,11,FALSE),"") -> 13.9375
B16: =IFERROR(VLOOKUP($A16,[1]البيانات!$B$2:$L$350,11,FALSE),"") -> 
B17: =IFERROR(VLOOKUP($A17,[1]البيانات!$B$2:$L$350,11,FALSE),"") -> 
B18: =IFERROR(VLOOKUP($A18,[1]البيانات!$B$2:$L$350,11,FALSE),"") -> 
B19: =IFERROR(VLOOKUP($A19,[1]البيانات!$B$2:$L$350,11,FALSE),"") -> 
B20: =IFERROR(VLOOKUP($A20,[1]البيانات!$B$2:$L$350,11,FALSE),"") -> 
B21: =IFERROR(VLOOKUP($A21,[1]البيانات!$B$2:$L$350,11,FALSE),"") -> 
B22: =IFERROR(VLOOKUP($A22,[1]البيانات!$B$2:$L$350,11,FALSE),"") -> 
B23: =IFERROR(VLOOKUP($A23,[1]البيانات!$B$2:$L$350,11,FALSE),"") -> 
B24: =IFERROR(VLOOKUP($A24,[1]البيانات!$B$2:$L$350,11,FALSE),"") -> 
B25: =IFERROR(VLOOKUP($A25,[1]البيانات!$B$2:$L$350,11,FALSE),"") -> 
B26: =IFERROR(VLOOKUP($A26,[1]البيانات!$B$2:$L$350,11,FALSE),"") -> 
B27: =IFERROR(VLOOKUP($A27,[1]البيانات!$B$2:$L$350,11,FALSE),"") -> 
B28: =IFERROR(VLOOKUP($A28,[1]البيانات!$B$2:$L$350,11,FALSE),"") -> 
B29: =IFERROR(VLOOKUP($A29,[1]البيانات!$B$2:$L$350,11,FALSE),"") -> 
B30: =IFERROR(VLOOKUP($A30,[1]البيانات!$B$2:$L$350,11,FALSE),"") -> 
B31: =IFERROR(VLOOKUP($A31,[1]البيانات!$B$2:$L$350,11,FALSE),"") -> 
B32: =IFERROR(VLOOKUP($A32,[1]البيانات!$B$2:$L$350,11,FALSE),"") -> 
B33: =IFERROR(VLOOKUP($A33,[1]البيانات!$B$2:$L$350,11,FALSE),"") -> 
B34: =IFERROR(VLOOKUP($A34,[1]البيانات!$B$2:$L$350,11,FALSE),"") -> 
B35: =IFERROR(VLOOKUP($A35,[1]البيانات!$B$2:$L$350,11,FALSE),"") -> 
B36: =IFERROR(VLOOKUP($A36,[1]البيانات!$B$2:$L$350,11,FALSE),"") -> 
B37: =IFERROR(VLOOKUP($A37,[1]البيانات!$B$2:$L$350,11,FALSE),"") -> 
B38: =IFERROR(VLOOKUP($A38,[1]البيانات!$B$2:$L$350,11,FALSE),"") -> 
B39: =IFERROR(VLOOKUP($A39,[1]البيانات!$B$2:$L$350,11,FALSE),"") -> 
B40: =IFERROR(VLOOKUP($A40,[1]البيانات!$B$2:$L$350,11,FALSE),"") -> 
B41: =IFERROR(VLOOKUP($A41,[1]البيانات!$B$2:$L$350,11,FALSE),"") -> 
B42: =IFERROR(VLOOKUP($A42,[1]البيانات!$B$2:$L$350,11,FALSE),"") -> 
B43: =IFERROR(VLOOKUP($A43,[1]البيانات!$B$2:$L$350,11,FALSE),"") -> 
B44: =IFERROR(VLOOKUP($A44,[1]البيانات!$B$2:$L$350,11,FALSE),"") -> 
B45: =IFERROR(VLOOKUP($A45,[1]البيانات!$B$2:$L$350,11,FALSE),"") -> 
B46: =IFERROR(VLOOKUP($A46,[1]البيانات!$B$2:$L$350,11,FALSE),"") -> 
B47: =IFERROR(VLOOKUP($A47,[1]البيانات!$B$2:$L$350,11,FALSE),"") -> 
B48: =IFERROR(VLOOKUP($A48,[1]البيانات!$B$2:$L$350,11,FALSE),"") -> 
B49: =IFERROR(VLOOKUP($A49,[1]البيانات!$B$2:$L$350,11,FALSE),"") -> 
B50: =IFERROR(VLOOKUP($A50,[1]البيانات!$B$2:$L$350,11,FALSE),"") -> 
B51: =IFERROR(VLOOKUP($A51,[1]البيانات!$B$2:$L$350,11,FALSE),"") -> 
B52: =IFERROR(VLOOKUP($A52,[1]البيانات!$B$2:$L$350,11,FALSE),"") -> 
B53: =IFERROR(VLOOKUP($A53,[1]البيانات!$B$2:$L$350,11,FALSE),"") -> 
B54: =IFERROR(VLOOKUP($A54,[1]البيانات!$B$2:$L$350,11,FALSE),"") -> 
B55: =IFERROR(VLOOKUP($A55,[1]البيانات!$B$2:$L$350,11,FALSE),"") -> 
B56: =IFERROR(VLOOKUP($A56,[1]البيانات!$B$2:$L$350,11,FALSE),"") -> 
B57: =IFERROR(VLOOKUP($A57,[1]البيانات!$B$2:$L$350,11,FALSE),"") -> 
B58: =IFERROR(VLOOKUP($A58,[1]البيانات!$B$2:$L$350,11,FALSE),"") -> 
B59: =IFERROR(VLOOKUP($A59,[1]البيانات!$B$2:$L$350,11,FALSE),"") -> 
B60: =IFERROR(VLOOKUP($A60,[1]البيانات!$B$2:$L$350,11,FALSE),"") -> 
B61: =IFERROR(VLOOKUP($A61,[1]البيانات!$B$2:$L$350,11,FALSE),"") -> 
B62: =IFERROR(VLOOKUP($A62,[1]البيانات!$B$2:$L$350,11,FALSE),"") -> 
B63: =IFERROR(VLOOKUP($A63,[1]البيانات!$B$2:$L$350,11,FALSE),"") -> 
B64: =IFERROR(VLOOKUP($A64,[1]البيانات!$B$2:$L$350,11,FALSE),"") -> 
B65: =IFERROR(VLOOKUP($A65,[1]البيانات!$B$2:$L$350,11,FALSE),"") -> 
B66: =IFERROR(VLOOKUP($A66,[1]البيانات!$B$2:$L$350,11,FALSE),"") -> 
B67: =IFERROR(VLOOKUP($A67,[1]البيانات!$B$2:$L$350,11,FALSE),"") -> 
B68: =IFERROR(VLOOKUP($A68,[1]البيانات!$B$2:$L$350,11,FALSE),"") -> 
B69: =IFERROR(VLOOKUP($A69,[1]البيانات!$B$2:$L$350,11,FALSE),"") -> 
B70: =IFERROR(VLOOKUP($A70,[1]البيانات!$B$2:$L$350,11,FALSE),"") -> 
B71: =IFERROR(VLOOKUP($A71,[1]البيانات!$B$2:$L$350,11,FALSE),"") -> 
B72: =IFERROR(VLOOKUP($A72,[1]البيانات!$B$2:$L$350,11,FALSE),"") -> 
B73: =IFERROR(VLOOKUP($A73,[1]البيانات!$B$2:$L$350,11,FALSE),"") -> 
B74: =IFERROR(VLOOKUP($A74,[1]البيانات!$B$2:$L$350,11,FALSE),"") -> 
B75: =IFERROR(VLOOKUP($A75,[1]البيانات!$B$2:$L$350,11,FALSE),"") -> 
B76: =IFERROR(VLOOKUP($A76,[1]البيانات!$B$2:$L$350,11,FALSE),"") -> 
B77: =IFERROR(VLOOKUP($A77,[1]البيانات!$B$2:$L$350,11,FALSE),"") -> 
B78: =IFERROR(VLOOKUP($A78,[1]البيانات!$B$2:$L$350,11,FALSE),"") -> 
B79: =IFERROR(VLOOKUP($A79,[1]البيانات!$B$2:$L$350,11,FALSE),"") -> 
B80: =IFERROR(VLOOKUP($A80,[1]البيانات!$B$2:$L$350,11,FALSE),"") -> 
B81: =IFERROR(VLOOKUP($A81,[1]البيانات!$B$2:$L$350,11,FALSE),"") -> 
B82: =IFERROR(VLOOKUP($A82,[1]البيانات!$B$2:$L$350,11,FALSE),"") -> 
B83: =IFERROR(VLOOKUP($A83,[1]البيانات!$B$2:$L$350,11,FALSE),"") -> 
B84: =IFERROR(VLOOKUP($A84,[1]البيانات!$B$2:$L$350,11,FALSE),"") -> 
B85: =IFERROR(VLOOKUP($A85,[1]البيانات!$B$2:$L$350,11,FALSE),"") -> 
B86: =IFERROR(VLOOKUP($A86,[1]البيانات!$B$2:$L$350,11,FALSE),"") -> 
B87: =IFERROR(VLOOKUP($A87,[1]البيانات!$B$2:$L$350,11,FALSE),"") -> 
B88: =IFERROR(VLOOKUP($A88,[1]البيانات!$B$2:$L$350,11,FALSE),"") -> 
B89: =IFERROR(VLOOKUP($A89,[1]البيانات!$B$2:$L$350,11,FALSE),"") -> 
B90: =IFERROR(VLOOKUP($A90,[1]البيانات!$B$2:$L$350,11,FALSE),"") -> 
B91: =IFERROR(VLOOKUP($A91,[1]البيانات!$B$2:$L$350,11,FALSE),"") -> 
B92: =IFERROR(VLOOKUP($A92,[1]البيانات!$B$2:$L$350,11,FALSE),"") -> 
B93: =IFERROR(VLOOKUP($A93,[1]البيانات!$B$2:$L$350,11,FALSE),"") -> 
B94: =IFERROR(VLOOKUP($A94,[1]البيانات!$B$2:$L$350,11,FALSE),"") -> 
B95: =IFERROR(VLOOKUP($A95,[1]البيانات!$B$2:$L$350,11,FALSE),"") -> 
B96: =IFERROR(VLOOKUP($A96,[1]البيانات!$B$2:$L$350,11,FALSE),"") -> 
B97: =IFERROR(VLOOKUP($A97,[1]البيانات!$B$2:$L$350,11,FALSE),"") -> 
B98: =IFERROR(VLOOKUP($A98,[1]البيانات!$B$2:$L$350,11,FALSE),"") -> 
B99: =IFERROR(VLOOKUP($A99,[1]البيانات!$B$2:$L$350,11,FALSE),"") -> 
B100: =IFERROR(VLOOKUP($A100,[1]البيانات!$B$2:$L$350,11,FALSE),"") -> 
B101: =IFERROR(VLOOKUP($A101,[1]البيانات!$B$2:$L$350,11,FALSE),"") -> 
B102: =IFERROR(VLOOKUP($A102,[1]البيانات!$B$2:$L$350,11,FALSE),"") -> 
B103: =IFERROR(VLOOKUP($A103,[1]البيانات!$B$2:$L$350,11,FALSE),"") -> 
B104: =IFERROR(VLOOKUP($A104,[1]البيانات!$B$2:$L$350,11,FALSE),"") -> 
B105: =IFERROR(VLOOKUP($A105,[1]البيانات!$B$2:$L$350,11,FALSE),"") -> 
B106: =IFERROR(VLOOKUP($A106,[1]البيانات!$B$2:$L$350,11,FALSE),"") -> 
B107: =IFERROR(VLOOKUP($A107,[1]البيانات!$B$2:$L$350,11,FALSE),"") -> 
B108: =IFERROR(VLOOKUP($A108,[1]البيانات!$B$2:$L$350,11,FALSE),"") -> 
B109: =IFERROR(VLOOKUP($A109,[1]البيانات!$B$2:$L$350,11,FALSE),"") -> 
B110: =IFERROR(VLOOKUP($A110,[1]البيانات!$B$2:$L$350,11,FALSE),"") -> 
B111: =IFERROR(VLOOKUP($A111,[1]البيانات!$B$2:$L$350,11,FALSE),"") -> 
B112: =IFERROR(VLOOKUP($A112,[1]البيانات!$B$2:$L$350,11,FALSE),"") -> 
B113: =IFERROR(VLOOKUP($A113,[1]البيانات!$B$2:$L$350,11,FALSE),"") -> 
B114: =IFERROR(VLOOKUP($A114,[1]البيانات!$B$2:$L$350,11,FALSE),"") -> 
B115: =IFERROR(VLOOKUP($A115,[1]البيانات!$B$2:$L$350,11,FALSE),"") -> 
B116: =IFERROR(VLOOKUP($A116,[1]البيانات!$B$2:$L$350,11,FALSE),"") -> 
B117: =IFERROR(VLOOKUP($A117,[1]البيانات!$B$2:$L$350,11,FALSE),"") -> 
B118: =IFERROR(VLOOKUP($A118,[1]البيانات!$B$2:$L$350,11,FALSE),"") -> 
B119: =IFERROR(VLOOKUP($A119,[1]البيانات!$B$2:$L$350,11,FALSE),"") -> 
B120: =IFERROR(VLOOKUP($A120,[1]البيانات!$B$2:$L$350,11,FALSE),"") -> 
B121: =IFERROR(VLOOKUP($A121,[1]البيانات!$B$2:$L$350,11,FALSE),"") -> 
B122: =IFERROR(VLOOKUP($A122,[1]البيانات!$B$2:$L$350,11,FALSE),"") -> 
B123: =IFERROR(VLOOKUP($A123,[1]البيانات!$B$2:$L$350,11,FALSE),"") -> 
B124: =IFERROR(VLOOKUP($A124,[1]البيانات!$B$2:$L$350,11,FALSE),"") -> 
B125: =IFERROR(VLOOKUP($A125,[1]البيانات!$B$2:$L$350,11,FALSE),"") -> 
B126: =IFERROR(VLOOKUP($A126,[1]البيانات!$B$2:$L$350,11,FALSE),"") -> 
B127: =IFERROR(VLOOKUP($A127,[1]البيانات!$B$2:$L$350,11,FALSE),"") -> 
B128: =IFERROR(VLOOKUP($A128,[1]البيانات!$B$2:$L$350,11,FALSE),"") -> 
B129: =IFERROR(VLOOKUP($A129,[1]البيانات!$B$2:$L$350,11,FALSE),"") -> 
B130: =IFERROR(VLOOKUP($A130,[1]البيانات!$B$2:$L$350,11,FALSE),"") -> 
B131: =IFERROR(VLOOKUP($A131,[1]البيانات!$B$2:$L$350,11,FALSE),"") -> 
B132: =IFERROR(VLOOKUP($A132,[1]البيانات!$B$2:$L$350,11,FALSE),"") -> 
B133: =IFERROR(VLOOKUP($A133,[1]البيانات!$B$2:$L$350,11,FALSE),"") -> 
B134: =IFERROR(VLOOKUP($A134,[1]البيانات!$B$2:$L$350,11,FALSE),"") -> 
B135: =IFERROR(VLOOKUP($A135,[1]البيانات!$B$2:$L$350,11,FALSE),"") -> 
B136: =IFERROR(VLOOKUP($A136,[1]البيانات!$B$2:$L$350,11,FALSE),"") -> 
B137: =IFERROR(VLOOKUP($A137,[1]البيانات!$B$2:$L$350,11,FALSE),"") -> 
B138: =IFERROR(VLOOKUP($A138,[1]البيانات!$B$2:$L$350,11,FALSE),"") -> 
B139: =IFERROR(VLOOKUP($A139,[1]البيانات!$B$2:$L$350,11,FALSE),"") -> 
B140: =IFERROR(VLOOKUP($A140,[1]البيانات!$B$2:$L$350,11,FALSE),"") -> 
B141: =IFERROR(VLOOKUP($A141,[1]البيانات!$B$2:$L$350,11,FALSE),"") -> 
B142: =IFERROR(VLOOKUP($A142,[1]البيانات!$B$2:$L$350,11,FALSE),"") -> 
B143: =IFERROR(VLOOKUP($A143,[1]البيانات!$B$2:$L$350,11,FALSE),"") -> 
B144: =IFERROR(VLOOKUP($A144,[1]البيانات!$B$2:$L$350,11,FALSE),"") -> 
B145: =IFERROR(VLOOKUP($A145,[1]البيانات!$B$2:$L$350,11,FALSE),"") -> 
B146: =IFERROR(VLOOKUP($A146,[1]البيانات!$B$2:$L$350,11,FALSE),"") -> 
B147: =IFERROR(VLOOKUP($A147,[1]البيانات!$B$2:$L$350,11,FALSE),"") -> 
B148: =IFERROR(VLOOKUP($A148,[1]البيانات!$B$2:$L$350,11,FALSE),"") -> 
B149: =IFERROR(VLOOKUP($A149,[1]البيانات!$B$2:$L$350,11,FALSE),"") -> 
B150: =IFERROR(VLOOKUP($A150,[1]البيانات!$B$2:$L$350,11,FALSE),"") -> 
B151: =IFERROR(VLOOKUP($A151,[1]البيانات!$B$2:$L$350,11,FALSE),"") -> 
B152: =IFERROR(VLOOKUP($A152,[1]البيانات!$B$2:$L$350,11,FALSE),"") -> 
B153: =IFERROR(VLOOKUP($A153,[1]البيانات!$B$2:$L$350,11,FALSE),"") -> 
B154: =IFERROR(VLOOKUP($A154,[1]البيانات!$B$2:$L$350,11,FALSE),"") -> 
B155: =IFERROR(VLOOKUP($A155,[1]البيانات!$B$2:$L$350,11,FALSE),"") -> 
B156: =IFERROR(VLOOKUP($A156,[1]البيانات!$B$2:$L$350,11,FALSE),"") -> 
B157: =IFERROR(VLOOKUP($A157,[1]البيانات!$B$2:$L$350,11,FALSE),"") -> 
B158: =IFERROR(VLOOKUP($A158,[1]البيانات!$B$2:$L$350,11,FALSE),"") -> 
B159: =IFERROR(VLOOKUP($A159,[1]البيانات!$B$2:$L$350,11,FALSE),"") -> 
B160: =IFERROR(VLOOKUP($A160,[1]البيانات!$B$2:$L$350,11,FALSE),"") -> 
B161: =IFERROR(VLOOKUP($A161,[1]البيانات!$B$2:$L$350,11,FALSE),"") -> 
B162: =IFERROR(VLOOKUP($A162,[1]البيانات!$B$2:$L$350,11,FALSE),"") -> 
B163: =IFERROR(VLOOKUP($A163,[1]البيانات!$B$2:$L$350,11,FALSE),"") -> 
B164: =IFERROR(VLOOKUP($A164,[1]البيانات!$B$2:$L$350,11,FALSE),"") -> 
B165: =IFERROR(VLOOKUP($A165,[1]البيانات!$B$2:$L$350,11,FALSE),"") -> 
B166: =IFERROR(VLOOKUP($A166,[1]البيانات!$B$2:$L$350,11,FALSE),"") -> 
B167: =IFERROR(VLOOKUP($A167,[1]البيانات!$B$2:$L$350,11,FALSE),"") -> 
B168: =IFERROR(VLOOKUP($A168,[1]البيانات!$B$2:$L$350,11,FALSE),"") -> 
B169: =IFERROR(VLOOKUP($A169,[1]البيانات!$B$2:$L$350,11,FALSE),"") -> 
B170: =IFERROR(VLOOKUP($A170,[1]البيانات!$B$2:$L$350,11,FALSE),"") -> 
B171: =IFERROR(VLOOKUP($A171,[1]البيانات!$B$2:$L$350,11,FALSE),"") -> 
B172: =IFERROR(VLOOKUP($A172,[1]البيانات!$B$2:$L$350,11,FALSE),"") -> 
B173: =IFERROR(VLOOKUP($A173,[1]البيانات!$B$2:$L$350,11,FALSE),"") -> 
B174: =IFERROR(VLOOKUP($A174,[1]البيانات!$B$2:$L$350,11,FALSE),"") -> 
B175: =IFERROR(VLOOKUP($A175,[1]البيانات!$B$2:$L$350,11,FALSE),"") -> 
B176: =IFERROR(VLOOKUP($A176,[1]البيانات!$B$2:$L$350,11,FALSE),"") -> 
B177: =IFERROR(VLOOKUP($A177,[1]البيانات!$B$2:$L$350,11,FALSE),"") -> 
B178: =IFERROR(VLOOKUP($A178,[1]البيانات!$B$2:$L$350,11,FALSE),"") -> 
B179: =IFERROR(VLOOKUP($A179,[1]البيانات!$B$2:$L$350,11,FALSE),"") -> 
B180: =IFERROR(VLOOKUP($A180,[1]البيانات!$B$2:$L$350,11,FALSE),"") -> 
B181: =IFERROR(VLOOKUP($A181,[1]البيانات!$B$2:$L$350,11,FALSE),"") -> 
B182: =IFERROR(VLOOKUP($A182,[1]البيانات!$B$2:$L$350,11,FALSE),"") -> 
B183: =IFERROR(VLOOKUP($A183,[1]البيانات!$B$2:$L$350,11,FALSE),"") -> 
B184: =IFERROR(VLOOKUP($A184,[1]البيانات!$B$2:$L$350,11,FALSE),"") -> 
B185: =IFERROR(VLOOKUP($A185,[1]البيانات!$B$2:$L$350,11,FALSE),"") -> 
B186: =IFERROR(VLOOKUP($A186,[1]البيانات!$B$2:$L$350,11,FALSE),"") -> 
B187: =IFERROR(VLOOKUP($A187,[1]البيانات!$B$2:$L$350,11,FALSE),"") -> 
B188: =IFERROR(VLOOKUP($A188,[1]البيانات!$B$2:$L$350,11,FALSE),"") -> 
B189: =IFERROR(VLOOKUP($A189,[1]البيانات!$B$2:$L$350,11,FALSE),"") -> 
B190: =IFERROR(VLOOKUP($A190,[1]البيانات!$B$2:$L$350,11,FALSE),"") -> 
B191: =IFERROR(VLOOKUP($A191,[1]البيانات!$B$2:$L$350,11,FALSE),"") -> 
B192: =IFERROR(VLOOKUP($A192,[1]البيانات!$B$2:$L$350,11,FALSE),"") -> 
B193: =IFERROR(VLOOKUP($A193,[1]البيانات!$B$2:$L$350,11,FALSE),"") -> 
B194: =IFERROR(VLOOKUP($A194,[1]البيانات!$B$2:$L$350,11,FALSE),"") -> 
B195: =IFERROR(VLOOKUP($A195,[1]البيانات!$B$2:$L$350,11,FALSE),"") -> 
B196: =IFERROR(VLOOKUP($A196,[1]البيانات!$B$2:$L$350,11,FALSE),"") -> 
B197: =IFERROR(VLOOKUP($A197,[1]البيانات!$B$2:$L$350,11,FALSE),"") -> 
B198: =IFERROR(VLOOKUP($A198,[1]البيانات!$B$2:$L$350,11,FALSE),"") -> 
B199: =IFERROR(VLOOKUP($A199,[1]البيانات!$B$2:$L$350,11,FALSE),"") -> 
B200: =IFERROR(VLOOKUP($A200,[1]البيانات!$B$2:$L$350,11,FALSE),"") -> 
... 2111 more rows

Sheet البيانات
A1: ت | B1: قياس الكابينة | C1: MDFنوع الخشب | D1: شريط PVC | E1: ظهر( طبقة الفايبر) | F1: مسند بلاستك | G1: سعر MDF | H1: سعر PVC | I1: سعر الظهر | J1: سعر المسند | K1: مواد تشغيل | L1: الأجمالي | O1: السعر | P1: المبلغ | U1: =INDEX(MyFindData,SMALL(IF(ISNUMBER(SEARCH(FindText,MyFindData)),ROW(MyFindData),""),ROW())-ROW(INDEX(MyFindData,1,1))+1) -> AB 1*10*10
A2: 1 | B2: AB 1*10*10 | C2: 23 | D2: 25.6 | E2: 45 | F2: 4 | G2: =IF(C2="","",VLOOKUP($G$1,$O$1:$P$6,2,0)*C2) -> 170.2 | H2: =IF(D2="","",VLOOKUP($H$1,$O$1:$P$6,2,0)*D2) -> 3.584 | I2: =IF(E2="","",VLOOKUP($I$1,$O$1:$P$6,2,0)*E2) -> 160.65 | J2: =IF(F2="","",VLOOKUP($J$1,$O$1:$P$6,2,0)*F2) -> 0.6 | L2: =SUM(G2:K2) -> 335.034 | O2: سعر MDF | P2: 7.4 | U2: AB 1*10*11
A3: 2 | B3: AB 1*10*11 | C3: 1.99 | D3: 13.92 | E3: 0.57 | F3: 7 | G3: =IF(C3="","",VLOOKUP($G$1,$O$1:$P$6,2,0)*C3) -> 14.726 | H3: =IF(D3="","",VLOOKUP($H$1,$O$1:$P$6,2,0)*D3) -> 1.9488 | I3: =IF(E3="","",VLOOKUP($I$1,$O$1:$P$6,2,0)*E3) -> 2.0349 | J3: =IF(F3="","",VLOOKUP($J$1,$O$1:$P$6,2,0)*F3) -> 1.05 | L3: =SUM(G3:K3) -> 19.7597 | O3: سعر PVC | P3: 0.14 | U3: AB 1*10*12
A4: 3 | B4: AB 1*10*12 | C4: 1.85 | D4: 13.12 | E4: 0.5 | F4: 6 | G4: 13.69 | H4: 1.8368 | I4: 1.785 | J4: 0.9 | L4: 18.2118 | O4: سعر الظهر | P4: 3.57 | U4: AB 1*10*13
A5: 4 | B5: AB 1*10*13 | C5: 1.85 | D5: 13.12 | E5: 0.5 | F5: 4 | G5: 13.69 | H5: 1.8368 | I5: 1.785 | J5: 0.6 | L5: 17.9118 | O5: سعر المسند | P5: 0.15 | U5: AB 1*10*14
A6: 5 | B6: AB 1*10*14 | C6: 1.72 | D6: 12.32 | E6: 0.44 | F6: 4 | G6: 12.728 | H6: 1.7248 | I6: 1.5708 | J6: 0.6 | L6: 16.6236 | O6: مواد تشغيل | P6: 0 | U6: AB 1*10*15
A7: 6 | B7: AB 1*10*15 | C7: 1.59 | D7: 11.52 | E7: 0.37 | F7: 7 | G7: =IF(C7="","",VLOOKUP($G$1,$O$1:$P$6,2,0)*C7) -> 11.766 | H7: 1.6128 | I7: 1.3209 | J7: 1.05 | L7: 15.7497 | U7: AB 1*10*16
A8: 7 | B8: AB 1*10*16 | C8: 1.45 | D8: 10.72 | E8: 0.31 | F8: 4 | G8: =IF(C8="","",VLOOKUP($G$1,$O$1:$P$6,2,0)*C8) -> 10.73 | H8: 1.5008 | I8: 1.1067 | J8: 0.6 | L8: 13.9375
U201: =INDEX(MyFindData,SMALL(IF(ISNUMBER(SEARCH(FindText,MyFindData)),ROW(MyFindData),""),ROW())-ROW(INDEX(MyFindData,1,1))+1) -> 
U202: =INDEX(MyFindData,SMALL(IF(ISNUMBER(SEARCH(FindText,MyFindData)),ROW(MyFindData),""),ROW())-ROW(INDEX(MyFindData,1,1))+1) -> 
U203: =INDEX(MyFindData,SMALL(IF(ISNUMBER(SEARCH(FindText,MyFindData)),ROW(MyFindData),""),ROW())-ROW(INDEX(MyFindData,1,1))+1) -> 
U204: =INDEX(MyFindData,SMALL(IF(ISNUMBER(SEARCH(FindText,MyFindData)),ROW(MyFindData),""),ROW())-ROW(INDEX(MyFindData,1,1))+1) -> 
U205: =INDEX(MyFindData,SMALL(IF(ISNUMBER(SEARCH(FindText,MyFindData)),ROW(MyFindData),""),ROW())-ROW(INDEX(MyFindData,1,1))+1) -> 
U206: =INDEX(MyFindData,SMALL(IF(ISNUMBER(SEARCH(FindText,MyFindData)),ROW(MyFindData),""),ROW())-ROW(INDEX(MyFindData,1,1))+1) -> 
U207: =INDEX(MyFindData,SMALL(IF(ISNUMBER(SEARCH(FindText,MyFindData)),ROW(MyFindData),""),ROW())-ROW(INDEX(MyFindData,1,1))+1) -> 
U208: =INDEX(MyFindData,SMALL(IF(ISNUMBER(SEARCH(FindText,MyFindData)),ROW(MyFindData),""),ROW())-ROW(INDEX(MyFindData,1,1))+1) -> 
U209: =INDEX(MyFindData,SMALL(IF(ISNUMBER(SEARCH(FindText,MyFindData)),ROW(MyFindData),""),ROW())-ROW(INDEX(MyFindData,1,1))+1) -> 
U210: =INDEX(MyFindData,SMALL(IF(ISNUMBER(SEARCH(FindText,MyFindData)),ROW(MyFindData),""),ROW())-ROW(INDEX(MyFindData,1,1))+1) -> 
U211: =INDEX(MyFindData,SMALL(IF(ISNUMBER(SEARCH(FindText,MyFindData)),ROW(MyFindData),""),ROW())-ROW(INDEX(MyFindData,1,1))+1) -> 
U212: =INDEX(MyFindData,SMALL(IF(ISNUMBER(SEARCH(FindText,MyFindData)),ROW(MyFindData),""),ROW())-ROW(INDEX(MyFindData,1,1))+1) -> 
U213: =INDEX(MyFindData,SMALL(IF(ISNUMBER(SEARCH(FindText,MyFindData)),ROW(MyFindData),""),ROW())-ROW(INDEX(MyFindData,1,1))+1) -> 
U214: =INDEX(MyFindData,SMALL(IF(ISNUMBER(SEARCH(FindText,MyFindData)),ROW(MyFindData),""),ROW())-ROW(INDEX(MyFindData,1,1))+1) -> 
U215: =INDEX(MyFindData,SMALL(IF(ISNUMBER(SEARCH(FindText,MyFindData)),ROW(MyFindData),""),ROW())-ROW(INDEX(MyFindData,1,1))+1) -> 
U216: =INDEX(MyFindData,SMALL(IF(ISNUMBER(SEARCH(FindText,MyFindData)),ROW(MyFindData),""),ROW())-ROW(INDEX(MyFindData,1,1))+1) -> 
U217: =INDEX(MyFindData,SMALL(IF(ISNUMBER(SEARCH(FindText,MyFindData)),ROW(MyFindData),""),ROW())-ROW(INDEX(MyFindData,1,1))+1) -> 
U218: =INDEX(MyFindData,SMALL(IF(ISNUMBER(SEARCH(FindText,MyFindData)),ROW(MyFindData),""),ROW())-ROW(INDEX(MyFindData,1,1))+1) -> 
U219: =INDEX(MyFindData,SMALL(IF(ISNUMBER(SEARCH(FindText,MyFindData)),ROW(MyFindData),""),ROW())-ROW(INDEX(MyFindData,1,1))+1) -> 
U220: =INDEX(MyFindData,SMALL(IF(ISNUMBER(SEARCH(FindText,MyFindData)),ROW(MyFindData),""),ROW())-ROW(INDEX(MyFindData,1,1))+1) -> 
U221: =INDEX(MyFindData,SMALL(IF(ISNUMBER(SEARCH(FindText,MyFindData)),ROW(MyFindData),""),ROW())-ROW(INDEX(MyFindData,1,1))+1) -> 
U222: =INDEX(MyFindData,SMALL(IF(ISNUMBER(SEARCH(FindText,MyFindData)),ROW(MyFindData),""),ROW())-ROW(INDEX(MyFindData,1,1))+1) -> 
U223: =INDEX(MyFindData,SMALL(IF(ISNUMBER(SEARCH(FindText,MyFindData)),ROW(MyFindData),""),ROW())-ROW(INDEX(MyFindData,1,1))+1) -> 
U224: =INDEX(MyFindData,SMALL(IF(ISNUMBER(SEARCH(FindText,MyFindData)),ROW(MyFindData),""),ROW())-ROW(INDEX(MyFindData,1,1))+1) -> 
U225: =INDEX(MyFindData,SMALL(IF(ISNUMBER(SEARCH(FindText,MyFindData)),ROW(MyFindData),""),ROW())-ROW(INDEX(MyFindData,1,1))+1) -> 
U226: =INDEX(MyFindData,SMALL(IF(ISNUMBER(SEARCH(FindText,MyFindData)),ROW(MyFindData),""),ROW())-ROW(INDEX(MyFindData,1,1))+1) -> 
U227: =INDEX(MyFindData,SMALL(IF(ISNUMBER(SEARCH(FindText,MyFindData)),ROW(MyFindData),""),ROW())-ROW(INDEX(MyFindData,1,1))+1) -> 
U228: =INDEX(MyFindData,SMALL(IF(ISNUMBER(SEARCH(FindText,MyFindData)),ROW(MyFindData),""),ROW())-ROW(INDEX(MyFindData,1,1))+1) -> 
U229: =INDEX(MyFindData,SMALL(IF(ISNUMBER(SEARCH(FindText,MyFindData)),ROW(MyFindData),""),ROW())-ROW(INDEX(MyFindData,1,1))+1) -> 
U230: =INDEX(MyFindData,SMALL(IF(ISNUMBER(SEARCH(FindText,MyFindData)),ROW(MyFindData),""),ROW())-ROW(INDEX(MyFindData,1,1))+1) -> 
U231: =INDEX(MyFindData,SMALL(IF(ISNUMBER(SEARCH(FindText,MyFindData)),ROW(MyFindData),""),ROW())-ROW(INDEX(MyFindData,1,1))+1) -> 
U232: =INDEX(MyFindData,SMALL(IF(ISNUMBER(SEARCH(FindText,MyFindData)),ROW(MyFindData),""),ROW())-ROW(INDEX(MyFindData,1,1))+1) -> 
U233: =INDEX(MyFindData,SMALL(IF(ISNUMBER(SEARCH(FindText,MyFindData)),ROW(MyFindData),""),ROW())-ROW(INDEX(MyFindData,1,1))+1) -> 
U234: =INDEX(MyFindData,SMALL(IF(ISNUMBER(SEARCH(FindText,MyFindData)),ROW(MyFindData),""),ROW())-ROW(INDEX(MyFindData,1,1))+1) -> 
U235: =INDEX(MyFindData,SMALL(IF(ISNUMBER(SEARCH(FindText,MyFindData)),ROW(MyFindData),""),ROW())-ROW(INDEX(MyFindData,1,1))+1) -> 
U236: =INDEX(MyFindData,SMALL(IF(ISNUMBER(SEARCH(FindText,MyFindData)),ROW(MyFindData),""),ROW())-ROW(INDEX(MyFindData,1,1))+1) -> 
U237: =INDEX(MyFindData,SMALL(IF(ISNUMBER(SEARCH(FindText,MyFindData)),ROW(MyFindData),""),ROW())-ROW(INDEX(MyFindData,1,1))+1) -> 
U238: =INDEX(MyFindData,SMALL(IF(ISNUMBER(SEARCH(FindText,MyFindData)),ROW(MyFindData),""),ROW())-ROW(INDEX(MyFindData,1,1))+1) -> 
U239: =INDEX(MyFindData,SMALL(IF(ISNUMBER(SEARCH(FindText,MyFindData)),ROW(MyFindData),""),ROW())-ROW(INDEX(MyFindData,1,1))+1) -> 
U240: =INDEX(MyFindData,SMALL(IF(ISNUMBER(SEARCH(FindText,MyFindData)),ROW(MyFindData),""),ROW())-ROW(INDEX(MyFindData,1,1))+1) -> 
U241: =INDEX(MyFindData,SMALL(IF(ISNUMBER(SEARCH(FindText,MyFindData)),ROW(MyFindData),""),ROW())-ROW(INDEX(MyFindData,1,1))+1) -> 
U242: =INDEX(MyFindData,SMALL(IF(ISNUMBER(SEARCH(FindText,MyFindData)),ROW(MyFindData),""),ROW())-ROW(INDEX(MyFindData,1,1))+1) -> 
U243: =INDEX(MyFindData,SMALL(IF(ISNUMBER(SEARCH(FindText,MyFindData)),ROW(MyFindData),""),ROW())-ROW(INDEX(MyFindData,1,1))+1) -> 
U244: =INDEX(MyFindData,SMALL(IF(ISNUMBER(SEARCH(FindText,MyFindData)),ROW(MyFindData),""),ROW())-ROW(INDEX(MyFindData,1,1))+1) -> 
U245: =INDEX(MyFindData,SMALL(IF(ISNUMBER(SEARCH(FindText,MyFindData)),ROW(MyFindData),""),ROW())-ROW(INDEX(MyFindData,1,1))+1) -> 
U246: =INDEX(MyFindData,SMALL(IF(ISNUMBER(SEARCH(FindText,MyFindData)),ROW(MyFindData),""),ROW())-ROW(INDEX(MyFindData,1,1))+1) -> 
U247: =INDEX(MyFindData,SMALL(IF(ISNUMBER(SEARCH(FindText,MyFindData)),ROW(MyFindData),""),ROW())-ROW(INDEX(MyFindData,1,1))+1) -> 
U248: =INDEX(MyFindData,SMALL(IF(ISNUMBER(SEARCH(FindText,MyFindData)),ROW(MyFindData),""),ROW())-ROW(INDEX(MyFindData,1,1))+1) -> 
U249: =INDEX(MyFindData,SMALL(IF(ISNUMBER(SEARCH(FindText,MyFindData)),ROW(MyFindData),""),ROW())-ROW(INDEX(MyFindData,1,1))+1) -> 
U250: =INDEX(MyFindData,SMALL(IF(ISNUMBER(SEARCH(FindText,MyFindData)),ROW(MyFindData),""),ROW())-ROW(INDEX(MyFindData,1,1))+1) -> 
U251: =INDEX(MyFindData,SMALL(IF(ISNUMBER(SEARCH(FindText,MyFindData)),ROW(MyFindData),""),ROW())-ROW(INDEX(MyFindData,1,1))+1) -> 
U252: =INDEX(MyFindData,SMALL(IF(ISNUMBER(SEARCH(FindText,MyFindData)),ROW(MyFindData),""),ROW())-ROW(INDEX(MyFindData,1,1))+1) -> 
U253: =INDEX(MyFindData,SMALL(IF(ISNUMBER(SEARCH(FindText,MyFindData)),ROW(MyFindData),""),ROW())-ROW(INDEX(MyFindData,1,1))+1) -> 
U254: =INDEX(MyFindData,SMALL(IF(ISNUMBER(SEARCH(FindText,MyFindData)),ROW(MyFindData),""),ROW())-ROW(INDEX(MyFindData,1,1))+1) -> 
U255: =INDEX(MyFindData,SMALL(IF(ISNUMBER(SEARCH(FindText,MyFindData)),ROW(MyFindData),""),ROW())-ROW(INDEX(MyFindData,1,1))+1) -> 
U256: =INDEX(MyFindData,SMALL(IF(ISNUMBER(SEARCH(FindText,MyFindData)),ROW(MyFindData),""),ROW())-ROW(INDEX(MyFindData,1,1))+1) -> 
U257: =INDEX(MyFindData,SMALL(IF(ISNUMBER(SEARCH(FindText,MyFindData)),ROW(MyFindData),""),ROW())-ROW(INDEX(MyFindData,1,1))+1) -> 
U258: =INDEX(MyFindData,SMALL(IF(ISNUMBER(SEARCH(FindText,MyFindData)),ROW(MyFindData),""),ROW())-ROW(INDEX(MyFindData,1,1))+1) -> 
U259: =INDEX(MyFindData,SMALL(IF(ISNUMBER(SEARCH(FindText,MyFindData)),ROW(MyFindData),""),ROW())-ROW(INDEX(MyFindData,1,1))+1) -> 
U260: =INDEX(MyFindData,SMALL(IF(ISNUMBER(SEARCH(FindText,MyFindData)),ROW(MyFindData),""),ROW())-ROW(INDEX(MyFindData,1,1))+1) -> 
U261: =INDEX(MyFindData,SMALL(IF(ISNUMBER(SEARCH(FindText,MyFindData)),ROW(MyFindData),""),ROW())-ROW(INDEX(MyFindData,1,1))+1) -> 
U262: =INDEX(MyFindData,SMALL(IF(ISNUMBER(SEARCH(FindText,MyFindData)),ROW(MyFindData),""),ROW())-ROW(INDEX(MyFindData,1,1))+1) -> 
U263: =INDEX(MyFindData,SMALL(IF(ISNUMBER(SEARCH(FindText,MyFindData)),ROW(MyFindData),""),ROW())-ROW(INDEX(MyFindData,1,1))+1) -> 
U264: =INDEX(MyFindData,SMALL(IF(ISNUMBER(SEARCH(FindText,MyFindData)),ROW(MyFindData),""),ROW())-ROW(INDEX(MyFindData,1,1))+1) -> 
U265: =INDEX(MyFindData,SMALL(IF(ISNUMBER(SEARCH(FindText,MyFindData)),ROW(MyFindData),""),ROW())-ROW(INDEX(MyFindData,1,1))+1) -> 
U266: =INDEX(MyFindData,SMALL(IF(ISNUMBER(SEARCH(FindText,MyFindData)),ROW(MyFindData),""),ROW())-ROW(INDEX(MyFindData,1,1))+1) -> 
U267: =INDEX(MyFindData,SMALL(IF(ISNUMBER(SEARCH(FindText,MyFindData)),ROW(MyFindData),""),ROW())-ROW(INDEX(MyFindData,1,1))+1) -> 
U268: =INDEX(MyFindData,SMALL(IF(ISNUMBER(SEARCH(FindText,MyFindData)),ROW(MyFindData),""),ROW())-ROW(INDEX(MyFindData,1,1))+1) -> 
U269: =INDEX(MyFindData,SMALL(IF(ISNUMBER(SEARCH(FindText,MyFindData)),ROW(MyFindData),""),ROW())-ROW(INDEX(MyFindData,1,1))+1) -> 
U270: =INDEX(MyFindData,SMALL(IF(ISNUMBER(SEARCH(FindText,MyFindData)),ROW(MyFindData),""),ROW())-ROW(INDEX(MyFindData,1,1))+1) -> 
U271: =INDEX(MyFindData,SMALL(IF(ISNUMBER(SEARCH(FindText,MyFindData)),ROW(MyFindData),""),ROW())-ROW(INDEX(MyFindData,1,1))+1) -> 
U272: =INDEX(MyFindData,SMALL(IF(ISNUMBER(SEARCH(FindText,MyFindData)),ROW(MyFindData),""),ROW())-ROW(INDEX(MyFindData,1,1))+1) -> 
U273: =INDEX(MyFindData,SMALL(IF(ISNUMBER(SEARCH(FindText,MyFindData)),ROW(MyFindData),""),ROW())-ROW(INDEX(MyFindData,1,1))+1) -> 
U274: =INDEX(MyFindData,SMALL(IF(ISNUMBER(SEARCH(FindText,MyFindData)),ROW(MyFindData),""),ROW())-ROW(INDEX(MyFindData,1,1))+1) -> 
U275: =INDEX(MyFindData,SMALL(IF(ISNUMBER(SEARCH(FindText,MyFindData)),ROW(MyFindData),""),ROW())-ROW(INDEX(MyFindData,1,1))+1) -> 
U276: =INDEX(MyFindData,SMALL(IF(ISNUMBER(SEARCH(FindText,MyFindData)),ROW(MyFindData),""),ROW())-ROW(INDEX(MyFindData,1,1))+1) -> 
U277: =INDEX(MyFindData,SMALL(IF(ISNUMBER(SEARCH(FindText,MyFindData)),ROW(MyFindData),""),ROW())-ROW(INDEX(MyFindData,1,1))+1) -> 
U278: =INDEX(MyFindData,SMALL(IF(ISNUMBER(SEARCH(FindText,MyFindData)),ROW(MyFindData),""),ROW())-ROW(INDEX(MyFindData,1,1))+1) -> 
U279: =INDEX(MyFindData,SMALL(IF(ISNUMBER(SEARCH(FindText,MyFindData)),ROW(MyFindData),""),ROW())-ROW(INDEX(MyFindData,1,1))+1) -> 
U280: =INDEX(MyFindData,SMALL(IF(ISNUMBER(SEARCH(FindText,MyFindData)),ROW(MyFindData),""),ROW())-ROW(INDEX(MyFindData,1,1))+1) -> 
U281: =INDEX(MyFindData,SMALL(IF(ISNUMBER(SEARCH(FindText,MyFindData)),ROW(MyFindData),""),ROW())-ROW(INDEX(MyFindData,1,1))+1) -> 
U282: =INDEX(MyFindData,SMALL(IF(ISNUMBER(SEARCH(FindText,MyFindData)),ROW(MyFindData),""),ROW())-ROW(INDEX(MyFindData,1,1))+1) -> 
U283: =INDEX(MyFindData,SMALL(IF(ISNUMBER(SEARCH(FindText,MyFindData)),ROW(MyFindData),""),ROW())-ROW(INDEX(MyFindData,1,1))+1) -> 
U284: =INDEX(MyFindData,SMALL(IF(ISNUMBER(SEARCH(FindText,MyFindData)),ROW(MyFindData),""),ROW())-ROW(INDEX(MyFindData,1,1))+1) -> 
U285: =INDEX(MyFindData,SMALL(IF(ISNUMBER(SEARCH(FindText,MyFindData)),ROW(MyFindData),""),ROW())-ROW(INDEX(MyFindData,1,1))+1) -> 
U286: =INDEX(MyFindData,SMALL(IF(ISNUMBER(SEARCH(FindText,MyFindData)),ROW(MyFindData),""),ROW())-ROW(INDEX(MyFindData,1,1))+1) -> 
U287: =INDEX(MyFindData,SMALL(IF(ISNUMBER(SEARCH(FindText,MyFindData)),ROW(MyFindData),""),ROW())-ROW(INDEX(MyFindData,1,1))+1) -> 
U288: =INDEX(MyFindData,SMALL(IF(ISNUMBER(SEARCH(FindText,MyFindData)),ROW(MyFindData),""),ROW())-ROW(INDEX(MyFindData,1,1))+1) -> 
U289: =INDEX(MyFindData,SMALL(IF(ISNUMBER(SEARCH(FindText,MyFindData)),ROW(MyFindData),""),ROW())-ROW(INDEX(MyFindData,1,1))+1) -> 
U290: =INDEX(MyFindData,SMALL(IF(ISNUMBER(SEARCH(FindText,MyFindData)),ROW(MyFindData),""),ROW())-ROW(INDEX(MyFindData,1,1))+1) -> 
U291: =INDEX(MyFindData,SMALL(IF(ISNUMBER(SEARCH(FindText,MyFindData)),ROW(MyFindData),""),ROW())-ROW(INDEX(MyFindData,1,1))+1) -> 
U292: =INDEX(MyFindData,SMALL(IF(ISNUMBER(SEARCH(FindText,MyFindData)),ROW(MyFindData),""),ROW())-ROW(INDEX(MyFindData,1,1))+1) -> 
U293: =INDEX(MyFindData,SMALL(IF(ISNUMBER(SEARCH(FindText,MyFindData)),ROW(MyFindData),""),ROW())-ROW(INDEX(MyFindData,1,1))+1) -> 
U294: =INDEX(MyFindData,SMALL(IF(ISNUMBER(SEARCH(FindText,MyFindData)),ROW(MyFindData),""),ROW())-ROW(INDEX(MyFindData,1,1))+1) -> 
U295: =INDEX(MyFindData,SMALL(IF(ISNUMBER(SEARCH(FindText,MyFindData)),ROW(MyFindData),""),ROW())-ROW(INDEX(MyFindData,1,1))+1) -> 
U296: =INDEX(MyFindData,SMALL(IF(ISNUMBER(SEARCH(FindText,MyFindData)),ROW(MyFindData),""),ROW())-ROW(INDEX(MyFindData,1,1))+1) -> 
U297: =INDEX(MyFindData,SMALL(IF(ISNUMBER(SEARCH(FindText,MyFindData)),ROW(MyFindData),""),ROW())-ROW(INDEX(MyFindData,1,1))+1) -> 
U298: =INDEX(MyFindData,SMALL(IF(ISNUMBER(SEARCH(FindText,MyFindData)),ROW(MyFindData),""),ROW())-ROW(INDEX(MyFindData,1,1))+1) -> 
U299: =INDEX(MyFindData,SMALL(IF(ISNUMBER(SEARCH(FindText,MyFindData)),ROW(MyFindData),""),ROW())-ROW(INDEX(MyFindData,1,1))+1) -> 
U300: =INDEX(MyFindData,SMALL(IF(ISNUMBER(SEARCH(FindText,MyFindData)),ROW(MyFindData),""),ROW())-ROW(INDEX(MyFindData,1,1))+1) -> 
U301: =INDEX(MyFindData,SMALL(IF(ISNUMBER(SEARCH(FindText,MyFindData)),ROW(MyFindData),""),ROW())-ROW(INDEX(MyFindData,1,1))+1) -> 
U302: =INDEX(MyFindData,SMALL(IF(ISNUMBER(SEARCH(FindText,MyFindData)),ROW(MyFindData),""),ROW())-ROW(INDEX(MyFindData,1,1))+1) -> 
U303: =INDEX(MyFindData,SMALL(IF(ISNUMBER(SEARCH(FindText,MyFindData)),ROW(MyFindData),""),ROW())-ROW(INDEX(MyFindData,1,1))+1) -> 
U304: =INDEX(MyFindData,SMALL(IF(ISNUMBER(SEARCH(FindText,MyFindData)),ROW(MyFindData),""),ROW())-ROW(INDEX(MyFindData,1,1))+1) -> 
U305: =INDEX(MyFindData,SMALL(IF(ISNUMBER(SEARCH(FindText,MyFindData)),ROW(MyFindData),""),ROW())-ROW(INDEX(MyFindData,1,1))+1) -> 
U306: =INDEX(MyFindData,SMALL(IF(ISNUMBER(SEARCH(FindText,MyFindData)),ROW(MyFindData),""),ROW())-ROW(INDEX(MyFindData,1,1))+1) -> 
U307: =INDEX(MyFindData,SMALL(IF(ISNUMBER(SEARCH(FindText,MyFindData)),ROW(MyFindData),""),ROW())-ROW(INDEX(MyFindData,1,1))+1) -> 
U308: =INDEX(MyFindData,SMALL(IF(ISNUMBER(SEARCH(FindText,MyFindData)),ROW(MyFindData),""),ROW())-ROW(INDEX(MyFindData,1,1))+1) -> 
U309: =INDEX(MyFindData,SMALL(IF(ISNUMBER(SEARCH(FindText,MyFindData)),ROW(MyFindData),""),ROW())-ROW(INDEX(MyFindData,1,1))+1) -> 
U310: =INDEX(MyFindData,SMALL(IF(ISNUMBER(SEARCH(FindText,MyFindData)),ROW(MyFindData),""),ROW())-ROW(INDEX(MyFindData,1,1))+1) -> 
U311: =INDEX(MyFindData,SMALL(IF(ISNUMBER(SEARCH(FindText,MyFindData)),ROW(MyFindData),""),ROW())-ROW(INDEX(MyFindData,1,1))+1) -> 
U312: =INDEX(MyFindData,SMALL(IF(ISNUMBER(SEARCH(FindText,MyFindData)),ROW(MyFindData),""),ROW())-ROW(INDEX(MyFindData,1,1))+1) -> 
U313: =INDEX(MyFindData,SMALL(IF(ISNUMBER(SEARCH(FindText,MyFindData)),ROW(MyFindData),""),ROW())-ROW(INDEX(MyFindData,1,1))+1) -> 
U314: =INDEX(MyFindData,SMALL(IF(ISNUMBER(SEARCH(FindText,MyFindData)),ROW(MyFindData),""),ROW())-ROW(INDEX(MyFindData,1,1))+1) -> 
U315: =INDEX(MyFindData,SMALL(IF(ISNUMBER(SEARCH(FindText,MyFindData)),ROW(MyFindData),""),ROW())-ROW(INDEX(MyFindData,1,1))+1) -> 
U316: =INDEX(MyFindData,SMALL(IF(ISNUMBER(SEARCH(FindText,MyFindData)),ROW(MyFindData),""),ROW())-ROW(INDEX(MyFindData,1,1))+1) -> 
U317: =INDEX(MyFindData,SMALL(IF(ISNUMBER(SEARCH(FindText,MyFindData)),ROW(MyFindData),""),ROW())-ROW(INDEX(MyFindData,1,1))+1) -> 
U318: =INDEX(MyFindData,SMALL(IF(ISNUMBER(SEARCH(FindText,MyFindData)),ROW(MyFindData),""),ROW())-ROW(INDEX(MyFindData,1,1))+1) -> 
U319: =INDEX(MyFindData,SMALL(IF(ISNUMBER(SEARCH(FindText,MyFindData)),ROW(MyFindData),""),ROW())-ROW(INDEX(MyFindData,1,1))+1) -> 
U320: =INDEX(MyFindData,SMALL(IF(ISNUMBER(SEARCH(FindText,MyFindData)),ROW(MyFindData),""),ROW())-ROW(INDEX(MyFindData,1,1))+1) -> 
U321: =INDEX(MyFindData,SMALL(IF(ISNUMBER(SEARCH(FindText,MyFindData)),ROW(MyFindData),""),ROW())-ROW(INDEX(MyFindData,1,1))+1) -> 
U322: =INDEX(MyFindData,SMALL(IF(ISNUMBER(SEARCH(FindText,MyFindData)),ROW(MyFindData),""),ROW())-ROW(INDEX(MyFindData,1,1))+1) -> 
U323: =INDEX(MyFindData,SMALL(IF(ISNUMBER(SEARCH(FindText,MyFindData)),ROW(MyFindData),""),ROW())-ROW(INDEX(MyFindData,1,1))+1) -> 
U324: =INDEX(MyFindData,SMALL(IF(ISNUMBER(SEARCH(FindText,MyFindData)),ROW(MyFindData),""),ROW())-ROW(INDEX(MyFindData,1,1))+1) -> 
U325: =INDEX(MyFindData,SMALL(IF(ISNUMBER(SEARCH(FindText,MyFindData)),ROW(MyFindData),""),ROW())-ROW(INDEX(MyFindData,1,1))+1) -> 
U326: =INDEX(MyFindData,SMALL(IF(ISNUMBER(SEARCH(FindText,MyFindData)),ROW(MyFindData),""),ROW())-ROW(INDEX(MyFindData,1,1))+1) -> 
U327: =INDEX(MyFindData,SMALL(IF(ISNUMBER(SEARCH(FindText,MyFindData)),ROW(MyFindData),""),ROW())-ROW(INDEX(MyFindData,1,1))+1) -> 
U328: =INDEX(MyFindData,SMALL(IF(ISNUMBER(SEARCH(FindText,MyFindData)),ROW(MyFindData),""),ROW())-ROW(INDEX(MyFindData,1,1))+1) -> 
U329: =INDEX(MyFindData,SMALL(IF(ISNUMBER(SEARCH(FindText,MyFindData)),ROW(MyFindData),""),ROW())-ROW(INDEX(MyFindData,1,1))+1) -> 
U330: =INDEX(MyFindData,SMALL(IF(ISNUMBER(SEARCH(FindText,MyFindData)),ROW(MyFindData),""),ROW())-ROW(INDEX(MyFindData,1,1))+1) -> 
U331: =INDEX(MyFindData,SMALL(IF(ISNUMBER(SEARCH(FindText,MyFindData)),ROW(MyFindData),""),ROW())-ROW(INDEX(MyFindData,1,1))+1) -> 
U332: =INDEX(MyFindData,SMALL(IF(ISNUMBER(SEARCH(FindText,MyFindData)),ROW(MyFindData),""),ROW())-ROW(INDEX(MyFindData,1,1))+1) -> 
U333: =INDEX(MyFindData,SMALL(IF(ISNUMBER(SEARCH(FindText,MyFindData)),ROW(MyFindData),""),ROW())-ROW(INDEX(MyFindData,1,1))+1) -> 
U334: =INDEX(MyFindData,SMALL(IF(ISNUMBER(SEARCH(FindText,MyFindData)),ROW(MyFindData),""),ROW())-ROW(INDEX(MyFindData,1,1))+1) -> 
U335: =INDEX(MyFindData,SMALL(IF(ISNUMBER(SEARCH(FindText,MyFindData)),ROW(MyFindData),""),ROW())-ROW(INDEX(MyFindData,1,1))+1) -> 
U336: =INDEX(MyFindData,SMALL(IF(ISNUMBER(SEARCH(FindText,MyFindData)),ROW(MyFindData),""),ROW())-ROW(INDEX(MyFindData,1,1))+1) -> 
U337: =INDEX(MyFindData,SMALL(IF(ISNUMBER(SEARCH(FindText,MyFindData)),ROW(MyFindData),""),ROW())-ROW(INDEX(MyFindData,1,1))+1) -> 
U338: =INDEX(MyFindData,SMALL(IF(ISNUMBER(SEARCH(FindText,MyFindData)),ROW(MyFindData),""),ROW())-ROW(INDEX(MyFindData,1,1))+1) -> 
U339: =INDEX(MyFindData,SMALL(IF(ISNUMBER(SEARCH(FindText,MyFindData)),ROW(MyFindData),""),ROW())-ROW(INDEX(MyFindData,1,1))+1) -> 
U340: =INDEX(MyFindData,SMALL(IF(ISNUMBER(SEARCH(FindText,MyFindData)),ROW(MyFindData),""),ROW())-ROW(INDEX(MyFindData,1,1))+1) -> 
U341: =INDEX(MyFindData,SMALL(IF(ISNUMBER(SEARCH(FindText,MyFindData)),ROW(MyFindData),""),ROW())-ROW(INDEX(MyFindData,1,1))+1) -> 
U342: =INDEX(MyFindData,SMALL(IF(ISNUMBER(SEARCH(FindText,MyFindData)),ROW(MyFindData),""),ROW())-ROW(INDEX(MyFindData,1,1))+1) -> 
U343: =INDEX(MyFindData,SMALL(IF(ISNUMBER(SEARCH(FindText,MyFindData)),ROW(MyFindData),""),ROW())-ROW(INDEX(MyFindData,1,1))+1) -> 
U344: =INDEX(MyFindData,SMALL(IF(ISNUMBER(SEARCH(FindText,MyFindData)),ROW(MyFindData),""),ROW())-ROW(INDEX(MyFindData,1,1))+1) -> 
U345: =INDEX(MyFindData,SMALL(IF(ISNUMBER(SEARCH(FindText,MyFindData)),ROW(MyFindData),""),ROW())-ROW(INDEX(MyFindData,1,1))+1) -> 
U346: =INDEX(MyFindData,SMALL(IF(ISNUMBER(SEARCH(FindText,MyFindData)),ROW(MyFindData),""),ROW())-ROW(INDEX(MyFindData,1,1))+1) -> 
U347: =INDEX(MyFindData,SMALL(IF(ISNUMBER(SEARCH(FindText,MyFindData)),ROW(MyFindData),""),ROW())-ROW(INDEX(MyFindData,1,1))+1) -> 
U348: =INDEX(MyFindData,SMALL(IF(ISNUMBER(SEARCH(FindText,MyFindData)),ROW(MyFindData),""),ROW())-ROW(INDEX(MyFindData,1,1))+1) -> 
U349: =INDEX(MyFindData,SMALL(IF(ISNUMBER(SEARCH(FindText,MyFindData)),ROW(MyFindData),""),ROW())-ROW(INDEX(MyFindData,1,1))+1) -> 
U350: =INDEX(MyFindData,SMALL(IF(ISNUMBER(SEARCH(FindText,MyFindData)),ROW(MyFindData),""),ROW())-ROW(INDEX(MyFindData,1,1))+1) -> 
U351: =INDEX(MyFindData,SMALL(IF(ISNUMBER(SEARCH(FindText,MyFindData)),ROW(MyFindData),""),ROW())-ROW(INDEX(MyFindData,1,1))+1) -> 
U352: =INDEX(MyFindData,SMALL(IF(ISNUMBER(SEARCH(FindText,MyFindData)),ROW(MyFindData),""),ROW())-ROW(INDEX(MyFindData,1,1))+1) -> 
U353: =INDEX(MyFindData,SMALL(IF(ISNUMBER(SEARCH(FindText,MyFindData)),ROW(MyFindData),""),ROW())-ROW(INDEX(MyFindData,1,1))+1) -> 
U354: =INDEX(MyFindData,SMALL(IF(ISNUMBER(SEARCH(FindText,MyFindData)),ROW(MyFindData),""),ROW())-ROW(INDEX(MyFindData,1,1))+1) -> 
U355: =INDEX(MyFindData,SMALL(IF(ISNUMBER(SEARCH(FindText,MyFindData)),ROW(MyFindData),""),ROW())-ROW(INDEX(MyFindData,1,1))+1) -> 
U356: =INDEX(MyFindData,SMALL(IF(ISNUMBER(SEARCH(FindText,MyFindData)),ROW(MyFindData),""),ROW())-ROW(INDEX(MyFindData,1,1))+1) -> 
U357: =INDEX(MyFindData,SMALL(IF(ISNUMBER(SEARCH(FindText,MyFindData)),ROW(MyFindData),""),ROW())-ROW(INDEX(MyFindData,1,1))+1) -> 
U358: =INDEX(MyFindData,SMALL(IF(ISNUMBER(SEARCH(FindText,MyFindData)),ROW(MyFindData),""),ROW())-ROW(INDEX(MyFindData,1,1))+1) -> 
U359: =INDEX(MyFindData,SMALL(IF(ISNUMBER(SEARCH(FindText,MyFindData)),ROW(MyFindData),""),ROW())-ROW(INDEX(MyFindData,1,1))+1) -> 
U360: =INDEX(MyFindData,SMALL(IF(ISNUMBER(SEARCH(FindText,MyFindData)),ROW(MyFindData),""),ROW())-ROW(INDEX(MyFindData,1,1))+1) -> 
U361: =INDEX(MyFindData,SMALL(IF(ISNUMBER(SEARCH(FindText,MyFindData)),ROW(MyFindData),""),ROW())-ROW(INDEX(MyFindData,1,1))+1) -> 
U362: =INDEX(MyFindData,SMALL(IF(ISNUMBER(SEARCH(FindText,MyFindData)),ROW(MyFindData),""),ROW())-ROW(INDEX(MyFindData,1,1))+1) -> 
U363: =INDEX(MyFindData,SMALL(IF(ISNUMBER(SEARCH(FindText,MyFindData)),ROW(MyFindData),""),ROW())-ROW(INDEX(MyFindData,1,1))+1) -> 
U364: =INDEX(MyFindData,SMALL(IF(ISNUMBER(SEARCH(FindText,MyFindData)),ROW(MyFindData),""),ROW())-ROW(INDEX(MyFindData,1,1))+1) -> 
U365: =INDEX(MyFindData,SMALL(IF(ISNUMBER(SEARCH(FindText,MyFindData)),ROW(MyFindData),""),ROW())-ROW(INDEX(MyFindData,1,1))+1) -> 
U366: =INDEX(MyFindData,SMALL(IF(ISNUMBER(SEARCH(FindText,MyFindData)),ROW(MyFindData),""),ROW())-ROW(INDEX(MyFindData,1,1))+1) -> 
U367: =INDEX(MyFindData,SMALL(IF(ISNUMBER(SEARCH(FindText,MyFindData)),ROW(MyFindData),""),ROW())-ROW(INDEX(MyFindData,1,1))+1) -> 
U368: =INDEX(MyFindData,SMALL(IF(ISNUMBER(SEARCH(FindText,MyFindData)),ROW(MyFindData),""),ROW())-ROW(INDEX(MyFindData,1,1))+1) -> 
U369: =INDEX(MyFindData,SMALL(IF(ISNUMBER(SEARCH(FindText,MyFindData)),ROW(MyFindData),""),ROW())-ROW(INDEX(MyFindData,1,1))+1) -> 
U370: =INDEX(MyFindData,SMALL(IF(ISNUMBER(SEARCH(FindText,MyFindData)),ROW(MyFindData),""),ROW())-ROW(INDEX(MyFindData,1,1))+1) -> 
U371: =INDEX(MyFindData,SMALL(IF(ISNUMBER(SEARCH(FindText,MyFindData)),ROW(MyFindData),""),ROW())-ROW(INDEX(MyFindData,1,1))+1) -> 
U372: =INDEX(MyFindData,SMALL(IF(ISNUMBER(SEARCH(FindText,MyFindData)),ROW(MyFindData),""),ROW())-ROW(INDEX(MyFindData,1,1))+1) -> 
U373: =INDEX(MyFindData,SMALL(IF(ISNUMBER(SEARCH(FindText,MyFindData)),ROW(MyFindData),""),ROW())-ROW(INDEX(MyFindData,1,1))+1) -> 
U374: =INDEX(MyFindData,SMALL(IF(ISNUMBER(SEARCH(FindText,MyFindData)),ROW(MyFindData),""),ROW())-ROW(INDEX(MyFindData,1,1))+1) -> 
U375: =INDEX(MyFindData,SMALL(IF(ISNUMBER(SEARCH(FindText,MyFindData)),ROW(MyFindData),""),ROW())-ROW(INDEX(MyFindData,1,1))+1) -> 
U376: =INDEX(MyFindData,SMALL(IF(ISNUMBER(SEARCH(FindText,MyFindData)),ROW(MyFindData),""),ROW())-ROW(INDEX(MyFindData,1,1))+1) -> 
U377: =INDEX(MyFindData,SMALL(IF(ISNUMBER(SEARCH(FindText,MyFindData)),ROW(MyFindData),""),ROW())-ROW(INDEX(MyFindData,1,1))+1) -> 
U378: =INDEX(MyFindData,SMALL(IF(ISNUMBER(SEARCH(FindText,MyFindData)),ROW(MyFindData),""),ROW())-ROW(INDEX(MyFindData,1,1))+1) -> 
U379: =INDEX(MyFindData,SMALL(IF(ISNUMBER(SEARCH(FindText,MyFindData)),ROW(MyFindData),""),ROW())-ROW(INDEX(MyFindData,1,1))+1) -> 
U380: =INDEX(MyFindData,SMALL(IF(ISNUMBER(SEARCH(FindText,MyFindData)),ROW(MyFindData),""),ROW())-ROW(INDEX(MyFindData,1,1))+1) -> 
U381: =INDEX(MyFindData,SMALL(IF(ISNUMBER(SEARCH(FindText,MyFindData)),ROW(MyFindData),""),ROW())-ROW(INDEX(MyFindData,1,1))+1) -> 
U382: =INDEX(MyFindData,SMALL(IF(ISNUMBER(SEARCH(FindText,MyFindData)),ROW(MyFindData),""),ROW())-ROW(INDEX(MyFindData,1,1))+1) -> 
U383: =INDEX(MyFindData,SMALL(IF(ISNUMBER(SEARCH(FindText,MyFindData)),ROW(MyFindData),""),ROW())-ROW(INDEX(MyFindData,1,1))+1) -> 
U384: =INDEX(MyFindData,SMALL(IF(ISNUMBER(SEARCH(FindText,MyFindData)),ROW(MyFindData),""),ROW())-ROW(INDEX(MyFindData,1,1))+1) -> 
U385: =INDEX(MyFindData,SMALL(IF(ISNUMBER(SEARCH(FindText,MyFindData)),ROW(MyFindData),""),ROW())-ROW(INDEX(MyFindData,1,1))+1) -> 
U386: =INDEX(MyFindData,SMALL(IF(ISNUMBER(SEARCH(FindText,MyFindData)),ROW(MyFindData),""),ROW())-ROW(INDEX(MyFindData,1,1))+1) -> 
U387: =INDEX(MyFindData,SMALL(IF(ISNUMBER(SEARCH(FindText,MyFindData)),ROW(MyFindData),""),ROW())-ROW(INDEX(MyFindData,1,1))+1) -> 
U388: =INDEX(MyFindData,SMALL(IF(ISNUMBER(SEARCH(FindText,MyFindData)),ROW(MyFindData),""),ROW())-ROW(INDEX(MyFindData,1,1))+1) -> 
U389: =INDEX(MyFindData,SMALL(IF(ISNUMBER(SEARCH(FindText,MyFindData)),ROW(MyFindData),""),ROW())-ROW(INDEX(MyFindData,1,1))+1) -> 
U390: =INDEX(MyFindData,SMALL(IF(ISNUMBER(SEARCH(FindText,MyFindData)),ROW(MyFindData),""),ROW())-ROW(INDEX(MyFindData,1,1))+1) -> 
U391: =INDEX(MyFindData,SMALL(IF(ISNUMBER(SEARCH(FindText,MyFindData)),ROW(MyFindData),""),ROW())-ROW(INDEX(MyFindData,1,1))+1) -> 
U392: =INDEX(MyFindData,SMALL(IF(ISNUMBER(SEARCH(FindText,MyFindData)),ROW(MyFindData),""),ROW())-ROW(INDEX(MyFindData,1,1))+1) -> 
... 51 more rows
